Cogmind - Beta 11 X8 @@@ ROGUE MODE // 2021.10.25 @ 02:30:16 Player: Runia Result: Self-destructed Performance ------------- Evolutions (1) 500 Regions Visited (5) 1000 Robots Destroyed (104) 520 Value Destroyed (2237) 2237 Prototype IDs (33) 660 Alien Tech Used (0) 0 Bonus (300) 300 TOTAL SCORE: 5217 Bonus ------- Aligned with FarCom 300 Cogmind --------- Core Integrity 155/400 Matter 111/300 Energy 310/310 System Corruption 0% Temperature Cool (0) Movement Rolling (150) Ox4 Location -9/Exiles Parts ------- > --- POWER (1) -------- Fission Core > --- PROPULSION (2) --- Light Treads Armored Wheel > --- UTILITY (4) ------ Large Storage Unit Light Armor Plating Medium Armor Plating Hardened Medium Armor Plating > --- WEAPON (2) ------- AWS/Gauss > --- INVENTORY (15) --- Cold Fusion Reactor Makeshift Leg Advanced Myomer Leg Hardened Medium Armor Plating 8R-AWN's Armor/EX System Purifier Heavy Assault Rifle Heavy Assault Rifle Improved Assault Rifle Improved Assault Rifle Rocket Launcher Field Lobotomy Kit (5) Peak State ------------ > --- POWER ------------ Heavy Ion Engine > --- PROPULSION ------- Light Treads Armored Wheel > --- UTILITY ---------- Large Storage Unit Medium Armor Plating Hardened Medium Armor Plating System Purifier > --- WEAPON ----------- AWS/Gauss > --- INVENTORY -------- Fission Core Light Treads Advanced Myomer Leg Hardened Medium Armor Plating 8R-AWN's Armor/EX Heavy Assault Rifle Heavy Assault Rifle Improved Assault Rifle Improved Assault Rifle Rocket Launcher Field Lobotomy Kit [Rating: 42] Favorites ----------- Power Heavy Ion Engine Engine Heavy Ion Engine Power Core Fission Core Propulsion Light Treads Treads Light Treads Leg Aluminum Leg Wheel Armored Wheel Utility Hardened Medium Armor Plating Device Improved Heat Sink Storage Large Storage Unit Processor Targeting Computer Protection Hardened Medium Armor Plating Weapon Light Assault Rifle Energy Gun Heavy EM Pulse Gun Ballistic Gun Light Assault Rifle Launcher Rocket Launcher Impact Weapon Heavy Hammer Slashing Weapon Mining Claw Build | -11 -10 -10 -9 -9 -9 ------- Run | Scr Mat Min Mat Min Exi Slots Evolved 2 | . . . 2 . . Power . | . . . . . . Propulsion . | . . . . . . Utility 2 | . . . 2 . . Weapon . | . . . . . . Parts Attached 93 | . 23 . 42 8 20 Power 10 | . 3 . 2 . 5 Engine 6 | . 3 . 2 . 1 Core 4 | . . . . . 4 Reactor . | . . . . . . Propulsion 20 | . 7 . 9 1 3 Treads 17 | . 6 . 8 1 2 Leg . | . . . . . . Wheel 3 | . 1 . 1 . 1 Hover . | . . . . . . Flight . | . . . . . . Utility 26 | . 3 . 13 4 6 Device 3 | . . . 1 1 1 Storage 6 | . 2 . 4 . . Processor 2 | . . . 2 . . Hackware . | . . . . . . Protection 15 | . 1 . 6 3 5 Artifact . | . . . . . . Weapon 37 | . 10 . 18 3 6 Energy Gun 9 | . 5 . 4 . . Energy Cannon . | . . . . . . Ballistic Gun 21 | . 5 . 10 2 4 Ballistic Cannon . | . . . . . . Launcher 4 | . . . 1 1 2 Special Weapon . | . . . . . . Impact Weapon 2 | . . . 2 . . Slashing Weapon 1 | . . . 1 . . Piercing Weapon . | . . . . . . Special Melee Weapon . | . . . . . . Unidentified Prototypes 8 | . . . 3 1 4 Parts Lost 7 | . 3 . 3 . 1 Power . | . . . . . . Propulsion 1 | . 1 . . . . Utility 2 | . . . 1 . 1 Weapon 4 | . 2 . 2 . . Highest Loss Streak 3 | . 2 . 3 . 1 Average Slot Usage (%) 95 | . 89 100 98 100 92 Engine 11 | . 14 14 11 11 9 Treads 19 | . 26 28 20 11 12 Wheel 3 | . . . 1 11 9 Storage 12 | . 14 14 12 11 11 Processor 3 | . . . 8 . . Protection 21 | . 5 14 20 33 32 Energy Gun 6 | . 16 28 3 . . Ballistic Gun 14 | . 11 . 16 20 13 Naked Turns . | . . . . . . Heaviest Build 61 | 10 32 32 52 52 61 Greatest Support 40 | 20 40 40 40 12 40 Greatest Overweight (x) 5 | . 1 . 4 4 5 Average Overweight (x) 1 | . . . 1 3 3 Largest Inventory Capacity 25 | 8 15 15 25 15 15 Average Capacity 14 | 8 10 15 15 15 15 Most Carried 15 | 5 10 12 15 15 15 Average Carried 12 | 5 7 10 13 14 12 Final Capacity 15 | 8 15 15 15 15 15 Final Carried 15 | 4 10 12 15 15 13 Class Distribution -------------------- 100% | Mutant Dominant Class ---------------- Mutant | -10/Materials Mutant | -10/Mines Mutant | -9/Materials Mutant | -9/Mines Mutant | -9/Exiles Resources | -11 -10 -10 -9 -9 -9 ----------- Run | Scr Mat Min Mat Min Exi Matter Collected 1958 | 174 527 . 751 310 196 Remotely . | . . . . . . Salvage Created 3803 | . 1349 153 1542 403 356 Parts 249 | . 86 9 83 21 50 Haulers Intercepted 7 | . 2 . 5 . . Recyclers Shooed 4 | . . . 4 . . Parts Field Recycled . | . . . . . . Retrieved Matter . | . . . . . . Parts Self-Destructed . | . . . . . . Prevented . | . . . . . . Kills | -11 -10 -10 -9 -9 -9 ------- Run | Scr Mat Min Mat Min Exi Combat Hostiles Destroyed 66 | . 26 5 22 7 6 Melee 1 | . . . 1 . . Guns 55 | . 24 5 19 5 2 AOE 10 | . 2 . 2 2 4 Classes Destroyed 14 | . 9 . 1 1 3 Worker 5 | . 1 . . 4 . Builder 1 | . 1 . . . . Tunneler 4 | . 1 . . 3 . Hauler 7 | . 2 . 5 . . Recycler 6 | . 3 . 3 . . Operator 5 | . 3 . 2 . . Turret 1 | . . . . . 1 Watcher 4 | . 2 . 2 . . Swarmer 12 | . 9 3 . . . Grunt 39 | . 17 2 14 6 . Brawler 1 | . . . . 1 . Sentry 8 | . . . 8 . . Zionite 8 | . . . . . 8 Assembled 5 | . . . . . 5 Best Kill Streak 11 | . 7 3 5 6 11 Combat Bots Only 7 | . 7 3 4 3 5 Max Kills in Single Turn 3 | . 2 1 2 2 3 Gunslinging 1 | . . . 1 . . Exploded 3 | . 1 . 2 1 3 Melee 1 | . . . 1 . . Uniques/NPCs Destroyed 4 | . . . . . 4 8R-AWN (-9/Exiles) EX-HEX (-9/Exiles) EX-DEC (-9/Exiles) EX-BIN (-9/Exiles) Combat | -11 -10 -10 -9 -9 -9 -------- Run | Scr Mat Min Mat Min Exi Damage Taken 3302 | . 834 155 1238 214 861 Core 402 | . 140 17 67 20 158 Absorbed by Shields . | . . . . . . Core Remaining (%) 68 | 100 . 37 . . . Volleys Fired 314 | . 124 7 138 27 18 Largest 2 | . 2 2 2 2 1 Hottest 90 | . 90 90 90 46 33 Shots Fired 663 | . 244 14 273 50 82 Gun 645 | . 244 14 273 46 68 Cannon . | . . . . . . Launcher 18 | . . . . 4 14 Special . | . . . . . . Kinetic 527 | . 186 . 227 46 68 Thermal 4 | . 4 . . . . Explosive 18 | . . . . 4 14 Electromagnetic 114 | . 54 14 46 . . Robot Hit Streak 22 | . 18 6 22 16 20 Robot Miss Streak 5 | . 5 4 4 2 2 Penetration Max . | . . . . . . Secondary Targets 10 | . 4 3 3 . . Max Gunslinging Chain 1 | . 1 1 1 . . Autonomous 64 | . . . . . 64 Shots Hit Robots 442 | . 151 8 187 36 60 Core Hits 181 | . 65 6 60 16 34 Critical Kills . | . . . . . . Critical Parts Destroyed 1 | . . . 1 . . Critical Strikes 5 | . 1 . 3 . 1 Destroy 2 | . . . 1 . 1 Corrupt 3 | . 1 . 2 . . Melee Attacks 15 | . . . 15 . . Impact 6 | . . . 6 . . Slashing 9 | . . . 9 . . Piercing . | . . . . . . Sneak Attacks . | . . . . . . Combat Hostiles . | . . . . . . Follow-up Attacks . | . . . . . . Damage Inflicted 7315 | . 1620 102 2339 820 2434 Guns 6119 | . 1495 102 2115 553 1854 Cannons . | . . . . . . Explosions 1073 | . 125 . 101 267 580 Melee 123 | . . . 123 . . Ramming . | . . . . . . Kinetic 5105 | . 1068 . 1630 553 1854 Thermal 250 | . 149 . 101 . . Explosive 847 | . . . . 267 580 Electromagnetic 990 | . 403 102 485 . . Impact . | . . . . . . Slashing 123 | . . . 123 . . Piercing . | . . . . . . Highest Corruption . | . . . . . . Average Corruption . | . . . . . . Corruption Purged . | . . . . . . Overload Shots . | . . . . . . Overflow Damage 16 | . 2 . . . 14 Projectiles . | . . . . . . Explosions 16 | . 2 . . . 14 Melee . | . . . . . . Knockbacks . | . . . . . . Impact . | . . . . . . Kinetic . | . . . . . . Secondary . | . . . . . . Self-Inflicted Damage 145 | . 70 . 56 19 . Shots 4 | . 2 . 1 1 . Rammed . | . . . . . . Targets Rammed . | . . . . . . Kicked . | . . . . . . Crushed . | . . . . . . Highest Temperature 162 | . 90 126 162 88 32 Average Temperature 31 | . 22 64 37 25 13 Received Heat Transfer 978 | . 288 45 534 111 . Siege Activations . | . . . . . . Robots Corrupted . | . . . . . . Combat Hostiles . | . . . . . . Parts Fried 5 | . 1 . 4 . . Impact Corruptions . | . . . . . . Robots Melted . | . . . . . . Combat Hostiles . | . . . . . . Parts Melted . | . . . . . . Heat Transferred 300 | . 250 . 50 . . Parts Sabotaged . | . . . . . . Parts Stolen . | . . . . . . Parts Stripped . | . . . . . . Power Chain Reactions 4 | . 3 . 1 . . Missiles Intercepted . | . . . . . . Alert | -11 -10 -10 -9 -9 -9 ------- Run | Scr Mat Min Mat Min Exi Peak Influence 423 | . 423 220 321 199 . Initial 94 | . . 85 7 94 . Average 148 | . 177 145 155 75 . Maximum Alert Level 2 | . 2 1 1 . . Low Security (%) 63 | 100 51 66 58 100 . Level 1 36 | . 47 33 41 . . Level 2 . | . . . . . . Level 3 . | . . . . . . Level 4 . | . . . . . . Level 5 . | . . . . . . High Security . | . . . . . . Max Security . | . . . . . . Squads Dispatched 15 | . 7 . 8 . . Investigation 7 | . 3 . 4 . . Extermination . | . . . . . . Reinforcement 8 | . 4 . 4 . . Assault . | . . . . . . Garrison . | . . . . . . Intercept . | . . . . . . Construction Impeded . | . . . . . . Haulers Reinforced . | . . . . . . Active Scanning Responses . | . . . . . . Cargo Convoy Interrupts . | . . . . . . Stealth | -11 -10 -10 -9 -9 -9 --------- Run | Scr Mat Min Mat Min Exi Distress Signals 8 | . 2 . 6 . . Communications Jammed . | . . . . . . Distress Signals . | . . . . . . Times Spotted 135 | . 52 7 44 7 25 Peak Tracking Total 9 | . 7 3 5 3 9 Tactical Retreats 10 | . 2 . 3 . 5 Traps | -11 -10 -10 -9 -9 -9 ------- Run | Scr Mat Min Mat Min Exi Traps Triggered 3 | . 3 . . . . Indirectly . | . . . . . . Trap Hack Attempts . | . . . . . . Triggered . | . . . . . . Disarmed . | . . . . . . Reprogrammed . | . . . . . . Reused . | . . . . . . Traps Extracted . | . . . . . . Installed . | . . . . . . Triggered . | . . . . . . Exploded 3 | . . . . . 3 Machines | -11 -10 -10 -9 -9 -9 ---------- Run | Scr Mat Min Mat Min Exi Machines Disabled 10 | . 4 . . . 6 Max in Single Turn 1 | . 1 . . . 1 Machines Sabotaged . | . . . . . . Garrisons Compromised . | . . . . . . Overloaded Fab Kills . | . . . . . . Hacking | -11 -10 -10 -9 -9 -9 --------- Run | Scr Mat Min Mat Min Exi Machines Accessed 22 | . 7 . 11 2 2 Terminals 12 | . 4 . 8 . . Fabricators . | . . . . . . Repair Stations 2 | . 1 . 1 . . Recycling Units 3 | . 2 . 1 . . Scanalyzers 1 | . . . 1 . . Garrison Access . | . . . . . . Total Hacks 66 | . 18 . 44 2 2 Successful 43 | . 11 . 28 2 2 Failed 23 | . 7 . 16 . . Catastrophic 6 | . 1 . 5 . . Database Lockouts . | . . . . . . Manual 11 | . 3 . 7 . 1 Terminals 45 | . 14 . 31 . . Fabricators . | . . . . . . Repair Stations 5 | . 2 . 3 . . Recycling Units 5 | . 2 . 3 . . Scanalyzers 7 | . . . 7 . . Garrison Access . | . . . . . . Terminal Hacks 27 | . 8 . 15 2 2 Record 1 | . . . . . 1 Robot Analysis 1 | . . . 1 . . Prototype ID Bank 1 | . . . 1 . . Open Door 2 | . . . . 2 . Terminal Index 1 | . . . 1 . . Alert Level 4 | . 1 . 3 . . Unreport Threat 6 | . 3 . 3 . . Locate Traps 3 | . 1 . 2 . . Hauler Manifests 2 | . 1 . 1 . . Zone Layout 5 | . 2 . 3 . . EX-Prototype ID Bank 1 | . . . . . 1 Fabricator Hacks . | . . . . . . Repair Station Hacks 3 | . 1 . 2 . . Scan Component 2 | . 1 . 1 . . Repair 1 | . . . 1 . . Recycling Unit Hacks 2 | . . . 2 . . Report Inventory 1 | . . . 1 . . Retrieve Components 1 | . . . 1 . . Scanalyzer 7 | . . . 7 . . Insert Component 3 | . . . 3 . . Analyze 4 | . . . 4 . . Garrison Access Hacks . | . . . . . . Unauthorized Hacks 4 | . 2 . 2 . . Terminals 1 | . . . 1 . . Track 1 | . . . 1 . . Fabricators . | . . . . . . Repair Stations . | . . . . . . Recycling Units 3 | . 2 . 1 . . Tunnel 3 | . 2 . 1 . . Scanalyzers . | . . . . . . Garrison Access . | . . . . . . Data Cores Recovered . | . . . . . . Used . | . . . . . . Hacking Detections 14 | . 5 . 9 . . Full Trace Events 2 | . . . 2 . . Feedback Events . | . . . . . . Feedback Blocked . | . . . . . . Robot Schematics Acquired . | . . . . . . Robots Built . | . . . . . . Authchips . | . . . . . . Time . | . . . . . . Total Robot Build Rating . | . . . . . . Part Schematics Acquired 3 | . . . 3 . . Parts Built . | . . . . . . Authchips . | . . . . . . Time . | . . . . . . Total Part Build Rating . | . . . . . . Parts Repaired 1 | . . . 1 . . Time 19 | . . . 19 . . Parts Recycled . | . . . . . . Recycled Matter . | . . . . . . Retrieved Matter . | . . . . . . Retrieved Components 10 | . . . 10 . . Parts Scanalyzed 3 | . . . 3 . . Part Schematics Acquired 3 | . . . 3 . . Parts Damaged . | . . . . . . Bothacking | -11 -10 -10 -9 -9 -9 ------------ Run | Scr Mat Min Mat Min Exi Used RIF Installer . | . . . . . . Robots Hacked . | . . . . . . Non-combat . | . . . . . . Combat . | . . . . . . Robot Hacks Applied . | . . . . . . Relay Couplers Released . | . . . . . . Robots Rewired . | . . . . . . Allies Hacked . | . . . . . . Hacks Repelled . | . . . . . . Allies | -11 -10 -10 -9 -9 -9 -------- Run | Scr Mat Min Mat Min Exi Total Allies . | . . . . . . Largest Group . | . . . . . . Highest-Rated Group . | . . . . . . Highest-Rated Ally . | . . . . . . Total Orders . | . . . . . . Ally Attacks . | . . . . . . Total Damage . | . . . . . . Kills . | . . . . . . Allies Corrupted . | . . . . . . Allies Melted . | . . . . . . Intel | -11 -10 -10 -9 -9 -9 ------- Run | Scr Mat Min Mat Min Exi Robot Analysis Total 1 | . . . 1 . . Derelict Logs Recovered 3 | . . 1 . 2 . Drone Launches . | . . . . . . Drone Recoveries . | . . . . . . Exploration | -11 -10 -10 -9 -9 -9 ------------- Run | Scr Mat Min Mat Min Exi Turns Passed 7199 | 1 1518 417 2937 878 1448 Spaces Moved 3434 | 1 713 245 1176 492 807 Core . | . . . . . . Treads 1965 | . 669 245 988 . 63 Legs 15 | 1 14 . . . . Wheels 1454 | . 30 . 188 492 744 Hover . | . . . . . . Flight . | . . . . . . Fastest Speed 95 | 120 95 160 135 135 135 Average Speed 169 | 120 156 160 196 149 158 Slowest Speed 240 | 120 160 160 240 150 240 Overloaded Moves . | . . . . . . Propulsion Burnouts . | . . . . . . Robots Hopped . | . . . . . . Cave-ins Triggered . | . . . . . . Exploration Rate (%) 70 | 2 94 52 91 93 88 Regions Visited 5 Branch Regions 3 Pre-discovered Areas 6 | . 2 . 1 2 1 Known Exits Taken . | . . . . . . Unknown Exits Taken 5 | 1 1 1 1 1 . Scrap Searched 1 | . . . . 1 . Spaces Dug 8 | . . . 8 . . Terrain Destroyed 95 | . 18 . 12 30 35 Melee 8 | . . . 8 . . Projectile 15 | . . . . . 15 AOE 72 | . 18 . 4 30 20 Terrain Rammed . | . . . . . . Walls Destroyed . | . . . . . . Machines Disabled . | . . . . . . Actions | -11 -10 -10 -9 -9 -9 --------- Run | Scr Mat Min Mat Min Exi Total 4272 | 2 909 257 1554 582 968 Wait 270 | . 18 2 122 46 82 Move 3429 | . 712 244 1175 491 807 Hop . | . . . . . . Pick Up 64 | . 17 3 26 3 15 Fast Attach 20 | . 7 . 7 2 4 Attach 24 | . 5 . 7 1 11 Detach 6 | . . . . 1 5 Swap 49 | . 11 . 28 5 5 Drop 81 | 2 15 1 36 6 21 Fire 314 | . 124 7 138 27 18 Melee 15 | . . . 15 . . Ram . | . . . . . . Kick . | . . . . . . Crush . | . . . . . . Escape Stasis . | . . . . . . Rewire . | . . . . . . Trap . | . . . . . . Miscellaneous . | . . . . . . Route ------- -11/Scrapyard -10/Materials (discovered 4 exits: *Mat x3 / [*Min]) -10/Mines (discovered 2 exits: *Mat x2) -9/Materials (discovered 6 exits: [*Mat x3] / *Min x2 / [*Sto]) -9/Mines (discovered 3 exits: [*Mat x2] / *Exi) -9/Exiles (discovered 1 exit: [*Min]) History --------- Turn | Location | Event 2 | -11/Scrapyard | Discovered new exit (range 0) 2 | -11/Scrapyard | Entered Materials 219 | -10/Materials | Destroyed 7 combat bots 233 | -10/Materials | Discovered new exit (range 6) 334 | -10/Materials | Build established: Mutant 392 | -10/Materials | Discovered new exit (range 8) 693 | -10/Materials | Core integrity fell below 50% 1120 | -10/Materials | Discovered new exit (range 16) 1322 | -10/Materials | Discovered new exit (range 13) 1520 | -10/Materials | Entered Mines 1550 | -10/Mines | Learned Materials garrison access intel 1554 | -10/Mines | Discovered new exit (range 11) 1683 | -10/Mines | Discovered new exit (range 14) 1789 | -10/Mines | Assembled infested the area 1794 | -10/Mines | Assisted by a Guerilla fighting off Assembled 1937 | -10/Mines | Entered Materials 1937 | -9/Materials | Evolved 2 slots: Utility x2 2280 | -9/Materials | Lost 3 parts (1u2w) 3322 | -9/Materials | Discovered new exit (range 7) 3349 | -9/Materials | Discovered new exit (range 16) 3687 | -9/Materials | Repaired Hrd. Medium Armor Plating 3957 | -9/Materials | Discovered new exit (range 10) 4178 | -9/Materials | Discovered new exit (range 5) 4366 | -9/Materials | Discovered new exit (range 8) 4657 | -9/Materials | Discovered new exit (range 12) 4874 | -9/Materials | Entered Mines 4910 | -9/Mines | Deemed a non-threat by the Exiles lab entrance 4912 | -9/Mines | Discovered new exit (range 5) 5148 | -9/Mines | Received a Rocket Launcher from a helpful Derelict 5207 | -9/Mines | Discovered new exit (range 3) 5342 | -9/Mines | Found the Drone Emporium 5345 | -9/Mines | Learned location of Zion (-6) 5353 | -9/Mines | Found Prototype Device 5355 | -9/Mines | Identified Decoy Drone Bay 5403 | -9/Mines | Met a Derelict who couldn't figure out how to use a Trap Extractor 5447 | -9/Mines | Discovered new exit (range 9) 5510 | -9/Mines | Excavation squad dispatched 5510 | -9/Mines | A large section of the Mines collapsed 5752 | -9/Mines | Entered Exiles 5796 | -9/Exiles | Met 8R-AWN 5815 | -9/Exiles | Met EX-HEX 5877 | -9/Exiles | Met EX-DEC 5945 | -9/Exiles | Discovered new exit (range 11) 6193 | -9/Exiles | Met EX-BIN 6222 | -9/Exiles | Aligned with FarCom system 6223 | -9/Exiles | Given EX-Vault access code 6258 | -9/Exiles | Opened EX-Vault 6270 | -9/Exiles | Found AWS/Gauss 6277 | -9/Exiles | Found Field Lobotomy Kit 6315 | -9/Exiles | Warned to stay clear of 0b10 Research branches 6567 | -9/Exiles | Attacked by the Exiles 6692 | -9/Exiles | Destroyed 8R-AWN 6700 | -9/Exiles | Found Prototype Protection 6788 | -9/Exiles | Core integrity fell below 50% 6875 | -9/Exiles | Identified 8R-AWN's Armor/EX 6939 | -9/Exiles | Destroyed EX-HEX 6941 | -9/Exiles | Destroyed EX-DEC 6942 | -9/Exiles | Destroyed EX-BIN 7005 | -9/Exiles | Found Prototype Device 7005 | -9/Exiles | Identified System Purifier 7200 | -9/Exiles | Self-destructed Last Messages --------------- 06942_ Slug penetrates EX-BIN. 06942_ EX-BIN: "You can't kill me, my evil twin will get revenge!" 06942_ EX-BIN destroyed. 06960_ Acquired 30 matter. 07004_ Dropped Hrd. Medium Armor Plating. 07005_ Acquired Prototype Device. 07005_ Identified System Purifier. 07007_ Dropped Lgt. Treads. 07010_ Acquired Prototype Reactor. 07011_ Dropped Hvy. Ion Engine. 07020_ Acquired Prototype Power Core. 07021_ Identified Lgt. Neutrino Core. 07023_ Dropped Lgt. Neutrino Core. 07027_ Acquired Prototype Engine. 07028_ Identified Hvy. Deuterium Engine. 07030_ Dropped Hvy. Deuterium Engine. 07054_ Acquired 19 matter. 07055_ Acquired 16 matter. 07058_ Acquired Lgt. Armor Plating. 07063_ Acquired Mak. Leg. Map ----- +----------------------------------------------------+ | | | | | | | | | | | | | | | | | | | | | | | | | | | | | | | | | | | | | | | | | | | | | ??????????????????????#########??????????????????? | | ??????????????????????# [[#??????????????????? | | ??????????????????????# [ #??????????????????? | | ??????????????????????# @ #??????????????????? | | ??????????????????????# X#??????????????????? | | ??????????????????????## ##??????????????????? | | ??????????????????????#X #???????????????????? | | ??????????????????????## #???????????????????? | | ???????????????????????# #???????????????????? | | ???????????????????????# #???####????????????? | | ???????????????????????# #??"""""????????????? | | ???????????????????????# ## """#???????????? | | ???????????????????????# X""#???????????? | | ???????????????????????# ## """#???????????? | | ?????????????????####??# #??"""""????????????? | | ?????????????????"""""?# #???####????????????? | | ????????????????"""" ## #???????????????????? | | ???????????????#""X" #???????????????????? | | ???????????????#" #???????????????????? | | ???????????????#" ## #???????????????????? | | ???????????????#""""""?# #?#########?????????? | | ????????????????#"###??# #?#"""""""#?????????? | | ???????????????????????# #?#"""""""#?????????? | | ???????????????????????# #?#"""""""#?????????? | | ??????????????????????## ###"" """"#?????????? | | ??????????????????????#" """"#?????????? | | ??????????????????????#" """#?????????? | | ??????????????????????#" """#?????????? | +----------------------------------------------------+ Best States ------------- Heat Dissipation 42 Energy Generation 18 Energy Capacity 310 Matter Stores 400 Matter Capacity 400 Sight Range 16 Terrain Scan Density 10 Armor Coverage 675 Utility Shielding 33 Weapon Shielding 33 Evasion (%) 50 Targeting Accuracy 5 Recoil Reduction 2 Item Schematics ----------------- Hrd. Medium Armor Plating | -9/Materials | Scanalyzed Med. Armor Plating | -9/Materials | Scanalyzed Weapon Shielding | -9/Materials | Scanalyzed Robot Schematics ------------------ None Fabricated ------------ Nothing Alien Tech Used ----------------- None Achievements -------------- None Challenges ------------ None Game ------ Seed CompositeCannonBoomstick Manual? 0 Play Time 00:39:23 Cumulative 402.1 hours Start 2021.10.25 @ 01:41:57 End 2021.10.25 @ 02:30:16 Sessions 2 Manual Loads 0 Difficulty Rogue Special Mode None Game No. 408 Rogue 408 Adventurer 0 Explorer 0 Win Type - Total 7 Types 6/0/0/1/0/0/0/0/0 Lore% 79 Gallery% 91 Achievement% 69 Wizard Run 0 Options --------- ASCII 0 Keyboard 0 Movement Mouse Keybinds 1 Fullscreen 2 Font 24/Smallcaps Map View 76x50 Tactical HUD 1 Map Filters NONE Filters NONE Steam 1 RUN: 9384e5c6-5296-4e44-8233-70d03056217f